[Event "45th FIDE Olympiad 2024"]
[Site "Budapest"]
[Date "2024.09.12"]
[Round "2.70"]
[White "Shevchenko, Kirill"]
[Black "Nikolovski, Nikola"]
[Result "1-0"]
[ECO "A96"]
[WhiteElo "2673"]
[BlackElo "2388"]
[Annotator "TA"]
[PlyCount "67"]
[EventDate "2024.09.05"]
[EventType "team-tourn"]
[EventCountry "HUN"]
[SourceTitle "playchess.com"]
[Source "ChessBase"]
[SourceQuality "1"]
[WhiteTeam "Romania"]
[BlackTeam "North Macedonia"]
[WhiteTeamCountry "ROU"]
[TimeControl "40/5400+30:1800+30"]

{[%evp 13,67,48,70,50,61,52,125,120,136,136,152,157,160,147,149,127,136,129,187,133,126,124,127,105,537,526,504,185,433,464,437,457,602,446,451,470,441,432,441,442,547,543,642,627,710,728,814,825,1015,1137,1211,1207,1375,1307,1935,1735]} 1. d4 e6 2. Nf3 f5 3. g3 Nf6 4. Bg2 Be7 5. O-O O-O 6. c4 d6 7. Nc3 a5 8. Bf4 Nh5 9. Bd2 Nd7 (9... Nf6 $14) 10. e4 $16 {White is better.} f4 11. e5 dxe5 12. dxe5 g6 13. Qe2 Nc5 14. Rad1 Bd7 15. Nb5 {[%cal Bc3b5,Bb5d4,Bd4f3][%mdl 32]} Bc6 {[#]} (15... Rf7 $16 16. b3 Qb8) 16. Bxa5 $1 {[%mdl 512]} Qc8 17. Bb4 {[%cal Ba5b4,Bb4c5,Bc5e7][%mdl 32]} (17. Bxc7 $6 Bxb5 18. Bd6 Bxd6 $14) 17... Rxa2 18. Nbd4 {Nxc6 would now be deadly.} Be4 {[%mdl 8192] [#] This move loses the game for Black.} (18... Qe8 $16 {is tougher.} 19. g4 Ng7) 19. Bxc5 $1 $18 Bxf3 20. Qxf3 (20. Bxf3 Bxc5 21. Nxe6 Qxe6 22. Bd5 (22. Bxb7 $2 c6 $19)) 20... fxg3 $2 (20... Bxc5 21. Qb3 (21. Qxb7 Qxb7 22. Bxb7 fxg3 $15) 21... Bxd4 22. Rxd4 (22. Qxa2 c5 $16) 22... Ra5) 21. Bxe7 {White is clearly winning.} Rxf3 22. Nxf3 {And now Rd8+ would win.} ({But not} 22. Bxf3 Qe8 $18) 22... Ra8 {[%cal Ba2a8,Ba8d8,Bd8d2][%mdl 32]} 23. Rd8+ Qxd8 24. Bxd8 {This pair of bishops is nice.} gxh2+ 25. Kxh2 Rxd8 26. Ra1 h6 27. Ra7 g5 {[%cal Bg6g5,Bg5g4][%mdl 32]} 28. Rxb7 g4 29. Nh4 Rd2 30. b4 {[%cal Bb2b4,Bb4b5,Bb5b6][%mdl 32]} Rxf2 31. Rxc7 Rb2 32. b5 Rb3 33. Ng6 {Threatens to win with c5.} Ng3 {[#]} 34. b6 $1 {Weighted Error Value: White=0.46/Black=0.68.  Loses game:     	---       	Black=1      Mistake:       	White=2     	Black=3      Inaccurate:     	---       	Black=1      OK:         	White=8     	Black=8      Best:        	White=1     	Black=2      Strong:       	White=1     	---} 1-0

[Event "45th FIDE Olympiad 2024"]
[Site "Budapest"]
[Date "2024.09.12"]
[Round "2.70"]
[White "Cottle, Brian S"]
[Black "Etienne, Angelo"]
[Result "0-1"]
[ECO "A34"]
[WhiteElo "1804"]
[BlackElo "2122"]
[Annotator "NA"]
[PlyCount "92"]
[EventDate "2024.09.05"]
[EventType "team-tourn"]
[EventCountry "HUN"]
[SourceTitle "playchess.com"]
[Source "ChessBase"]
[SourceQuality "1"]
[WhiteTeam "Saint Vincent and the Grenadines"]
[BlackTeam "Haiti"]
[BlackTeamCountry "HAI"]
[TimeControl "40/5400+30:1800+30"]

1. c4 Nf6 2. Nc3 c5 3. g3 g6 4. Bg2 Bg7 5. e3 e5 6. Nge2 O-O 7. O-O d6 8. b3 Nc6 9. Bb2 Bg4 10. h3 Be6 11. d4 exd4 12. exd4 d5 13. cxd5 Nxd5 14. dxc5 Nxc3 15. Bxc3 Bxc3 16. Nxc3 Qc8 17. Kh2 Rd8 18. Qf3 Nd4 19. Qxb7 Qxc5 20. Na4 Qa5 21. Qe7 Rac8 22. Bb7 Qf5 23. Bg2 Nf3+ 24. Kh1 Nd2 25. Rad1 Rd7 26. Qb4 Nxf1 27. Rxf1 Bd5 28. Bxd5 Qxh3+ 29. Kg1 Rxd5 30. Qb7 Rh5 31. Qg2 Qxg2+ 32. Kxg2 Rc2 33. a3 Ra2 34. Nc3 Rxa3 35. Ne4 Kg7 36. g4 Re5 37. f3 Rxb3 38. g5 Rxe4 39. fxe4 Rb5 40. Ra1 Rxg5+ 41. Kf3 a5 42. Kf4 Rb5 43. Ra4 f5 44. exf5 Rb4+ 45. Rxb4 axb4 46. fxg6 Kxg6 0-1

[Event "45th FIDE Olympiad 2024"]
[Site "Budapest"]
[Date "2024.09.12"]
[Round "2.71"]
[White "Risteski, Emil"]
[Black "Lupulescu, Constantin"]
[Result "1/2-1/2"]
[ECO "B67"]
[WhiteElo "2367"]
[BlackElo "2590"]
[Annotator "TA"]
[PlyCount "151"]
[EventDate "2024.09.05"]
[EventType "team-tourn"]
[EventCountry "HUN"]
[SourceTitle "playchess.com"]
[Source "ChessBase"]
[SourceQuality "1"]
[WhiteTeam "North Macedonia"]
[BlackTeam "Romania"]
[BlackTeamCountry "ROU"]
[TimeControl "40/5400+30:1800+30"]

{[%evp 39,151,56,47,47,50,48,42,15,19,22,35,27,39,22,77,72,71,71,71,71,65,58,58,63,67,56,63,62,79,76,49,51,56,51,50,47,40,20,23,25,23,8,17,14,27,35,24,30,29,27,34,32,93,8,8,8,57,20,20,20,20,20,13,12,70,40,45,40,40,40,40,40,40,40,40,0,70,70,70,70,70,70,70,70,116,70,116,116,116,116,116,116,116,116,116,116,116,116,116,116,116,116,116,0,0,0,0,0,45,0,0,0,0,0]} 1. e4 c5 2. Nf3 d6 3. d4 cxd4 4. Nxd4 Nf6 5. Nc3 Nc6 6. Bg5 Bd7 7. Qd2 a6 8. O-O-O e6 9. Kb1 Be7 {9...Nxd4 is the hot move. B67: Sicilian: Richter-Rauzer: 7...a6 8 0-0-0 Bd7, lines without 9 f4 Be7.} 10. Nxc6 Bxc6 11. f3 Qc7 12. h4 O-O-O 13. Ne2 h6 14. Be3 d5 15. e5 Nd7 16. f4 Bb5 $146 ({Predecessor:} 16... Nb6 17. Qe1 Kb8 18. h5 Rc8 19. Nd4 Nc4 20. Bxc4 dxc4 21. Nxc6+ Qxc6 22. Qg3 Rhg8 {½-½ Pascual Perez,N (2458)-Wosch,A (2379) ST-2020-0-00154}) 17. h5 Nb6 18. Qa5 Nc4 19. Qxc7+ Kxc7 20. Bc1 Na5 21. Nd4 Bxf1 22. Rhxf1 Nc6 23. c3 Nxd4 24. cxd4 g6 25. g4 Kd7 26. f5 gxf5 (26... exf5 $1 $11 {remains equal.} 27. gxf5 gxf5 (27... gxh5 28. Rh1 $16)) 27. gxf5 $16 exf5 28. Rxf5 Ke6 29. Rdf1 Rh7 30. R5f3 Rg8 31. Rb3 b5 32. Rc3 Kd7 33. Bf4 Rc8 34. Rxc8 Kxc8 35. Rg1 Kd7 36. Rg8 Ke6 37. Re8 f6 38. exf6 (38. Ra8 $5 Kf5 39. Ra7 $11) 38... Kxf6 39. Ra8 Kf5 40. Be5 Bg5 41. Rxa6 Rb7 42. Rd6 Kg4 43. Rxd5 Kxh5 44. Rc5 Kg4 45. d5 Kf5 (45... Be3 $1 $14 46. Rc3 Bf4 47. Bxf4 Kxf4) 46. d6 (46. Bc7 $16) 46... Ke6 $11 47. Bg3 b4 (47... Bf6 $11) 48. Re5+ Kd7 $1 49. Kc2 b3+ $1 50. axb3 Rb4 51. Ra5 Bf4 (51... Rg4 $11 52. Be5 Rg2+ 53. Kd3 Ke6) 52. Ra7+ Kxd6 53. Bxf4+ Rxf4 54. Ra6+ Kc5 55. Rxh6 Rf2+ 56. Kb1 Kb5 57. Rh5+ Kb6 (57... Kb4 $11) 58. Ka2 $14 Rf4 59. Ka3 Rg4 60. Rh1 Rf4 61. b4 Rf8 ({Black should try} 61... Rf2 $1 $14) 62. Kb3 ({White should play} 62. Rh6+ $16 Kb5 63. Rh5+ Kb6 64. Rh2) 62... Rg8 {[#]} (62... Ra8 $14) 63. Rh6+ $1 $16 Kb5 64. Rh5+ Kb6 65. Ka4 Rg6 66. Rh8 Rf6 67. Rh4 Rg6 68. b5 Rg1 69. Rh6+ Kb7 70. Kb4 Rf1 71. b6 (71. Rg6 $16) 71... Rf4+ $11 72. Ka5 Rf5+ 73. Ka4 Rf4+ 74. b4 Rf5 75. b5 Rf1 76. Rh7+ 1/2-1/2

[Event "45th FIDE Olympiad 2024"]
[Site "Budapest"]
[Date "2024.09.12"]
[Round "2.71"]
[White "Victor, Wyclef"]
[Black "Schneider, James U"]
[Result "1-0"]
[ECO "A23"]
[WhiteElo "1924"]
[BlackElo "1486"]
[Annotator "NA"]
[PlyCount "95"]
[EventDate "2024.09.05"]
[EventType "team-tourn"]
[EventCountry "HUN"]
[SourceTitle "playchess.com"]
[Source "ChessBase"]
[SourceQuality "1"]
[WhiteTeam "Haiti"]
[BlackTeam "Saint Vincent and the Grenadines"]
[WhiteTeamCountry "HAI"]
[TimeControl "40/5400+30:1800+30"]

1. c4 e5 2. Nc3 Nf6 3. g3 c6 4. Bg2 Bb4 5. Nf3 Bxc3 6. bxc3 d6 7. O-O O-O 8. d4 e4 9. Nd2 d5 10. cxd5 cxd5 11. c4 Nc6 12. e3 Bf5 13. Qa4 Re8 14. Rb1 Qd7 15. Re1 Rab8 16. Ba3 Nxd4 17. Qxd7 Nxd7 18. exd4 e3 19. fxe3 Bxb1 20. Nxb1 dxc4 21. Bd6 b5 22. Bxb8 Rxb8 23. Na3 a6 24. Rb1 c3 25. Bc6 Nf6 26. h3 Kf8 27. Kf2 Ke7 28. Ke2 Kd6 29. Bxb5 axb5 30. Nxb5+ Kc6 31. Nxc3 Ra8 32. Kd3 Nd7 33. e4 f6 34. Rb4 Ra3 35. Rc4+ Kd6 36. Ra4 Rxa4 37. Nxa4 Kc6 38. Kc4 Nb8 39. Nc5 g6 40. g4 Kd6 41. a4 Kc7 42. Kd5 Nc6 43. Ne6+ Kb6 44. Nf8 h5 45. gxh5 gxh5 46. Nd7+ Kc7 47. Nxf6 Nb4+ 48. Kc4 1-0

[Event "45th FIDE Olympiad 2024"]
[Site "Budapest"]
[Date "2024.09.12"]
[Round "2.72"]
[White "Parligras, Mircea-Emilian"]
[Black "Zlatkov, Anton"]
[Result "1/2-1/2"]
[ECO "E59"]
[WhiteElo "2537"]
[BlackElo "2346"]
[Annotator "TA"]
[PlyCount "86"]
[EventDate "2024.09.05"]
[EventType "team-tourn"]
[EventCountry "HUN"]
[SourceTitle "playchess.com"]
[Source "ChessBase"]
[SourceQuality "1"]
[WhiteTeam "Romania"]
[BlackTeam "North Macedonia"]
[WhiteTeamCountry "ROU"]
[TimeControl "40/5400+30:1800+30"]

{[%evp 21,86,9,24,-19,0,0,20,8,16,18,37,-7,-8,-11,0,0,0,0,0,0,0,0,-5,-56,-60,-66,-65,-58,-62,-63,-73,-90,-77,-104,-21,-24,0,0,0,0,0,0,0,0,0,0,13,4,8,4,22,8,8,8,8,8,8,10,13,0,0,7,6,0,7,0,7]} 1. d4 Nf6 2. c4 e6 3. Nc3 Bb4 4. e3 O-O 5. Bd3 d5 6. a3 Bxc3+ 7. bxc3 dxc4 8. Bxc4 c5 9. Nf3 Qc7 10. Be2 Nc6 11. O-O Rd8 12. c4 b6 13. Bb2 cxd4 14. exd4 Bb7 15. Re1 Qf4 16. Qc1 (16. Bd3 {with more complications.} Rac8 17. Qe2 Na5 18. Ne5) 16... Qxc1 17. Raxc1 Rac8 18. Bf1 Na5 19. Nd2 Ba6 20. Rc2 Ne8 21. Rec1 Nd6 22. d5 ({White should play} 22. h3 $11) 22... exd5 $15 23. cxd5 Rxc2 24. Rxc2 Bxf1 25. Kxf1 f6 26. Rc3 Nb5 27. Rd3 {[#]} Nb7 (27... Nc7 $1 $17 28. d6 Ne6) 28. Ne4 $11 Nc5 29. Nxc5 {The position is equal.} bxc5 {[%mdl 4096] Endgame. KRB-KRN} 30. a4 Nd4 31. Ba3 (31. Bxd4 Rxd5 32. Rb3 cxd4 (32... Rxd4 33. Rb8+ Kf7 34. Rb7+ Ke6 35. Rxa7 $11)) 31... Rxd5 32. Bxc5 Rxc5 33. Rxd4 {KR-KR} Rc7 34. Rd6 Kf7 35. Ra6 Ke7 36. Ke2 Kd7 37. Kd3 Kc8 38. h4 Rd7+ 39. Kc4 Re7 40. f3 Kb7 41. Rd6 Kc7 42. Ra6 Kb7 43. Rd6 Kc7 {Weighted Error Value: White=0.11 (very precise) /Black=0.08 (flawless) .  Mistake:       	White=1     	Black=1      Inaccurate:     	White=2     	---        OK:         	White=14    	Black=16     Best:        	White=1     	Black=2} 1/2-1/2

[Event "45th FIDE Olympiad 2024"]
[Site "Budapest"]
[Date "2024.09.12"]
[Round "2.73"]
[White "Nguyen, Thai Dai Van"]
[Black "Amartuvshin, Ganzorig"]
[Result "*"]
[ECO "A13"]
[WhiteElo "2647"]
[BlackElo "2402"]
[Annotator "TA"]
[PlyCount "104"]
[EventDate "2024.09.05"]
[EventType "team-tourn"]
[EventCountry "HUN"]
[SourceTitle "playchess.com"]
[Source "ChessBase"]
[SourceQuality "1"]
[WhiteTeam "Czech Republic"]
[BlackTeam "Mongolia"]
[WhiteTeamCountry "CZE"]
[BlackTeamCountry "MGL"]
[TimeControl "40/5400+30:1800+30"]

{[%evp 23,104,22,25,23,26,33,22,19,23,25,40,39,55,27,12,0,0,0,0,0,0,0,0,0,9,0,6,14,0,0,0,0,22,0,45,41,54,43,47,39,52,0,0,0,63,59,105,52,88,70,94,92,101,0,83,0,83,87,83,110,131,133,120,97,89,79,87,83,88,97,94,94,108,87,139,147,266,275,263,263,263,262,259]} 1. c4 Nf6 2. Nf3 e6 3. g3 d5 4. Bg2 dxc4 5. Qa4+ Nbd7 6. Qxc4 c5 7. Qb3 Bd6 8. O-O {A13: English Opening: 1...e6.} e5 $146 ({Predecessor:} 8... Rb8 9. Nc3 a6 10. d4 b5 11. dxc5 Nxc5 12. Qc2 Bb7 13. Rd1 Rc8 14. Bf4 Nce4 15. Ng5 e5 16. Bxe4 {1-0 Duda,J (2733)-Erigaisi,A (2778) Chess.com SpeedChess blitz 2024 (1.9)}) 9. d3 O-O 10. a4 h6 11. a5 Nb8 12. Nfd2 Nc6 13. a6 Rb8 14. Qd1 Qd7 15. axb7 Bxb7 16. Nc3 a6 17. Nc4 Nb4 18. Qa4 (18. Ne4 $5 Be7 19. Nxe5 $14) 18... Qe6 19. Be3 Bxg2 20. Kxg2 Be7 21. f3 Nd7 22. Rfc1 f5 23. Nd2 Kh7 24. Qd1 Nb6 25. Bf2 Rfc8 26. Na4 Nxa4 27. Rxa4 Nd5 28. Nc4 f4 29. g4 Rc6 30. Rca1 h5 31. h3 $1 Rh8 32. Na5 (32. Qb3 $1 $14) 32... Rcc8 33. Nc4 (33. Nb3 $11 Bh4 (33... hxg4 34. hxg4 Rc6 35. Na5 $16) 34. Rxa6 (34. Bxh4 $2 Ne3+ 35. Kg1 Nxd1 $19)) 33... Rc6 $1 $14 ({But not} 33... hxg4 $6 34. hxg4 (34. Rxa6 gxf3+ 35. exf3 Qf5 $11) 34... Rc6 35. Na5 $16) 34. Qb3 $1 Rd8 (34... Nb4 $14) 35. Qc2 (35. Nd2 $16) 35... Nb4 36. Qc1 Rb8 37. Na5 Rcb6 38. Nc4 Rc6 $1 39. Na5 Rcb6 $1 40. Qc4 Qg6 41. Rc1 Rb5 42. Qe4 Qxe4 43. fxe4 f3+ 44. Kxf3 Rf8+ {[#]} 45. Kg3 $1 Bh4+ 46. Kxh4 Rxf2 47. Nc4 Rxe2 48. Ra3 Rg2 ({Better is} 48... hxg4 49. hxg4 a5) 49. gxh5 $16 ({Much less strong is} 49. Nxe5 hxg4 50. hxg4 Rxb2 $14) ({Resist} 49. Kxh5 a5 $16) 49... Nc6 (49... Rb8 $16 {is a better defense.} 50. Nxe5 g5+ 51. hxg6+ Kg7) 50. Rxa6 $18 g5+ 51. hxg6+ Rxg6 52. Rf1 Rh6+ *

[Event "45th FIDE Olympiad 2024"]
[Site "Budapest"]
[Date "2024.09.12"]
[Round "2.73"]
[White "Koumba, Mounguen Jose Evrard"]
[Black "Liyanage, Ranindu Dilshan"]
[Result "0-1"]
[ECO "C55"]
[WhiteElo "1957"]
[BlackElo "2366"]
[Annotator "TA"]
[PlyCount "56"]
[EventDate "2024.09.05"]
[EventType "team-tourn"]
[EventCountry "HUN"]
[SourceTitle "playchess.com"]
[Source "ChessBase"]
[SourceQuality "1"]
[WhiteTeam "Gabon"]
[BlackTeam "Sri Lanka"]
[WhiteTeamCountry "GAB"]
[BlackTeamCountry "SRI"]
[TimeControl "40/5400+30:1800+30"]

{[%evp 11,56,12,15,-15,-18,-8,-16,-13,-4,-20,-12,-52,-6,-39,-12,-27,-33,-4,-18,-252,-218,-389,-389,-349,-376,-394,-377,-429,-421,-478,-441,-431,-400,-455,-445,-590,-577,-572,-569,-601,-587,-550,-577,-558,-549,-29993,-29994]} 1. e4 e5 2. Nf3 Nc6 3. Bc4 Nf6 4. d3 h6 5. Nc3 d6 6. h3 Na5 7. Bb5+ {[%cal Bc4b5,Bb5a4,Ba4b3][%mdl 32]} c6 8. Ba4 b5 9. Bb3 {The position is equal.} Be7 10. Be3 Qc7 11. Qd2 Bd7 (11... b4 $15 12. Na4 c5) 12. Ne2 d5 13. exd5 Nxb3 14. axb3 Nxd5 15. Ng3 $2 {[#] This move loses the game for White.} (15. O-O $11) 15... f5 $1 $19 16. Bxa7 $2 (16. Nh5) 16... Rxa7 17. Rxa7 Qxa7 18. O-O Bd6 19. Re1 O-O 20. Nxe5 Bxe5 21. Rxe5 Qa1+ 22. Kh2 Qxb2 23. Qe2 Nf4 24. Qe1 Ng6 {Prevents Re7.} 25. Rc5 Qd4 26. b4 Re8 27. Qd2 f4 28. Ne2 Qxf2 {Weighted Error Value: White=0.76/Black=0.06 (flawless) .  Loses game:     	White=1     	---        Mistake:       	White=1     	Black=1      Inaccurate:     	White=4     	Black=1      OK:         	White=8     	Black=10     Best:        	---       	Black=2      Strong:       	---       	Black=1} 0-1

[Event "45th FIDE Olympiad 2024"]
[Site "Budapest"]
[Date "2024.09.12"]
[Round "2.74"]
[White "Chinguun, Sumiya"]
[Black "Zilka, Stepan"]
[Result "1-0"]
[ECO "B92"]
[WhiteElo "2389"]
[BlackElo "2574"]
[Annotator "TA"]
[PlyCount "75"]
[EventDate "2024.09.05"]
[EventType "team-tourn"]
[EventCountry "HUN"]
[SourceTitle "playchess.com"]
[Source "ChessBase"]
[SourceQuality "1"]
[WhiteTeam "Mongolia"]
[BlackTeam "Czech Republic"]
[WhiteTeamCountry "MGL"]
[BlackTeamCountry "CZE"]
[TimeControl "40/5400+30:1800+30"]

{[%evp 14,75,14,7,14,0,0,-9,-23,-22,-29,-41,-29,-35,-21,-10,-13,-91,-94,-83,-85,-85,-85,-96,-89,-78,-84,-82,-38,-177,-11,-51,-60,-47,0,0,0,0,5,0,0,0,0,0,0,0,249,247,247,250,241,0,0,0,243,239,213,213,29968,6500,29991,29992,29992,29993]} 1. e4 c5 2. Nf3 d6 3. d4 cxd4 4. Nxd4 Nf6 5. Nc3 a6 6. Be2 e5 7. Nf3 h6 8. a4 Be7 9. Bc4 Qc7 10. Qe2 Be6 {The position is equal.} 11. Bxe6 fxe6 12. Nh4 Kf7 {Prevents Ng6.} 13. O-O g5 14. Nf3 Nc6 15. Bxg5 hxg5 $17 16. Nxg5+ Kg8 (16... Kg6 {seems wilder.} 17. Nxe6 Qc8 18. f4 Kf7) 17. Nxe6 {[#]} Qc8 18. Ng5 (18. Qc4 Nd4 19. Qxc8+ Rxc8 20. Nxd4 exd4 $19) 18... Nd4 19. Qd3 Qg4 20. f4 Rc8 {[%cal Oc8c3] Wards off Qc4+. ...Rxc3! would now be deadly.} 21. Rae1 (21. h3 $15 Qh4 22. Nf3 Nxf3+ (22... Qxf4 $2 23. Nxd4 Qg5 24. Nf5 $18) 23. Rxf3) 21... exf4 $2 (21... Nh5 $19 22. Nh3 Qg7 (22... Nxf4 $2 23. Nxf4 exf4 24. Qxd4 $18) 23. fxe5 dxe5) 22. e5 $1 $11 {The board is on fire.} Qxg5 23. exf6 Bxf6 (23... f3 $1 $15 24. Rf2 Qh6 (24... Qxf6 $2 25. Nd5 $18) (24... Bxf6 25. Ne4 $16) 25. gxf3 Bxf6) 24. Ne4 $1 {[%csl LRd6,LRg5]} Qh6 25. Nxf6+ Qxf6 26. Re4 {[%csl LRd4,LRf4]} (26. Qe4 {with more complications.} Rh4 27. g3 Qg5 28. c3) 26... Ne6 (26... Nxc2 $2 27. Rfxf4 $18 (27. Rexf4 Qg5 28. Qb3+ d5 29. Qxb7 Rh6 30. Qxc8+ Kh7 31. Rf7+ Kg6 32. Qg8+ Kh5) (27. Rexf4 Qg5 28. Qb3+ d5 29. Qxb7 Rh6 30. Qxc8+ Kh7 31. Rf7+ Kg6 32. Qg8+ Kh5)) 27. Qb3 {[%cal Oe4f4]} d5 $1 28. Qxd5 Rh6 29. Rfxf4 Qd8 (29... Qe7 $11 {and Black is okay.}) 30. Rg4+ $18 {[%mdl 1024] White has strong compensation.} Kh7 31. Qf5+ (31. Qxb7+ Kh8 32. Qxa6 Rxc2 $14) 31... Kh8 32. Qe5+ $2 (32. Rxe6 $18 {[%cal Re6h6]} Qd1+ 33. Kf2 Qxc2+ 34. Qxc2 Rxc2+ 35. Re2) 32... Kh7 $11 {[#] And now ...Qd1+ would win.} ({Avoid the trap} 32... Qf6 $2 33. Rh4 Kg7 (33... Qxe5 $2 34. Rxh6+ Kg7 35. Rxe5 $18) 34. Rxh6 Qxe5 35. Rxe5 $18) 33. Qf5+ $2 (33. h3 $11 Rc5 34. Qg3) 33... Kh8 $18 34. Rxe6 $40 {[%cal Re6h6][%mdl 128] White wants a kill.} Qd1+ 35. Kf2 {[%cal Re6h6,Bg1f2,Bf2g3,Bg3g2,Bg2f1][%mdl 32]} Rxc2+ $2 (35... Qxc2+ $18 36. Qxc2 Rxc2+ 37. Re2 Rhc6 (37... Rxe2+ $2 38. Kxe2 Kh7 39. h4 $18)) 36. Kg3 {[%cal Re6h6]} Rxg2+ 37. Kxg2 {[%cal Re6h6]} Qd2+ 38. Kf1 {Weighted Error Value: White=0.23 (precise) /Black=0.55.  Loses game:     	---       	Black=1      Missed win:     	White=1     	Black=1      Mistake:       	White=3     	Black=2      Inaccurate:     	---       	Black=2      OK:         	White=9     	Black=10     Best:        	White=7     	Black=4      Strong:       	White=1     	Black=1} 1-0

[Event "45th FIDE Olympiad 2024"]
[Site "Budapest"]
[Date "2024.09.12"]
[Round "2.74"]
[White "Amarathunga, Kosala Sandeepa Cham"]
[Black "Bongo Akanga Ndjila, Barthelemy"]
[Result "1-0"]
[ECO "A06"]
[WhiteElo "1956"]
[BlackElo "1894"]
[Annotator "NA"]
[PlyCount "77"]
[EventDate "2024.09.05"]
[EventType "team-tourn"]
[EventCountry "HUN"]
[SourceTitle "playchess.com"]
[Source "ChessBase"]
[SourceQuality "1"]
[WhiteTeam "Sri Lanka"]
[BlackTeam "Gabon"]
[WhiteTeamCountry "SRI"]
[BlackTeamCountry "GAB"]
[TimeControl "40/5400+30:1800+30"]

1. b3 d5 2. Bb2 Nf6 3. e3 Bf5 4. Nf3 e6 5. d3 Bb4+ 6. Nbd2 O-O 7. a3 Be7 8. Be2 h6 9. h3 c5 10. O-O Nc6 11. d4 cxd4 12. Nxd4 Nxd4 13. Bxd4 Qc7 14. c4 e5 15. Bb2 Rad8 16. Qe1 Rfe8 17. cxd5 Rxd5 18. e4 Rxd2 19. Qxd2 Bxe4 20. Rac1 Qb8 21. Rfd1 Bc6 22. b4 Ne4 23. Qd3 Rd8 24. Qb3 Rd6 25. b5 Bd7 26. Rxd6 Qxd6 27. Qe3 f5 28. Rd1 Qc7 29. Qb3+ Kf8 30. Bh5 Ng5 31. Qd5 Qc2 32. Qxd7 g6 33. Bxg6 Qxb2 34. Qe8+ Kg7 35. Qxe7+ Kxg6 36. Rd6+ Kh5 37. Qe8+ Nf7 38. Qxf7+ Kg5 39. Qg6+ 1-0

[Event "45th FIDE Olympiad 2024"]
[Site "Budapest"]
[Date "2024.09.12"]
[Round "2.75"]
[White "Krejci, Jan"]
[Black "Baasansuren, Erdene"]
[Result "*"]
[ECO "D38"]
[WhiteElo "2556"]
[BlackElo "2368"]
[Annotator "TA"]
[PlyCount "105"]
[EventDate "2024.09.05"]
[EventType "team-tourn"]
[EventCountry "HUN"]
[SourceTitle "playchess.com"]
[Source "ChessBase"]
[SourceQuality "1"]
[WhiteTeam "Czech Republic"]
[BlackTeam "Mongolia"]
[WhiteTeamCountry "CZE"]
[BlackTeamCountry "MGL"]
[TimeControl "40/5400+30:1800+30"]

{[%evp 12,105,18,16,9,12,6,10,9,10,25,-4,0,-33,8,0,0,-25,-24,-28,-19,-20,-17,-24,-27,-19,-21,-27,-30,-23,-31,-28,-29,-25,-32,-28,-22,-17,-12,-20,0,0,0,0,0,0,0,0,0,0,0,0,0,0,0,0,0,0,0,0,0,0,0,0,0,0,0,0,0,0,0,0,0,0,0,0,0,0,0,0,0,0,0,0,0,0,0,0,0,0,0,0,0,0,0,0]} 1. c4 Nf6 2. Nc3 e6 3. d4 Bb4 4. Nf3 d5 5. Qa4+ Nc6 6. e3 O-O 7. Bd2 dxc4 8. Bxc4 Bd6 9. Qc2 e5 10. dxe5 Nxe5 11. Be2 Qe7 12. Ng5 {[%cal Oc3d5] [#] aiming for Nd5!} g6 13. h3 h6 14. Nf3 Bf5 15. e4 {[#]} Nxe4 16. Nxe4 {0-0-0 would now be deadly.} Nc6 17. Bd3 {[%cal Oe1g1] And now 0-0! would win.} Bxe4 18. Bxe4 {[%cal Oe1g1] 0-0! is the strong threat.} Rfe8 {White should prevent ...Nb4.} 19. O-O-O Qxe4 20. Qxe4 Rxe4 21. Bxh6 Bc5 22. Rd2 Rae8 23. Bg5 Re2 24. Rf1 {The position is equal.} Rxd2 25. Kxd2 Nd4 26. Nxd4 Bxd4 $11 {[%mdl 4096] Endgame. KRB-KRB} 27. Kd3 c5 ({Much weaker is} 27... Bxb2 28. Rb1 Ba3 (28... Re5 $2 29. Bf6 $18) 29. Rxb7 $16) 28. b4 Kg7 29. a4 f6 30. bxc5 Bxc5 31. Rc1 Rd8+ 32. Ke2 Re8+ 33. Kf3 Re5 34. Bf4 Rd5 35. Rc4 Kf7 36. h4 b6 37. g4 g5 38. hxg5 fxg5 39. Bc1 Kg6 40. Ke4 Rd7 41. Be3 Re7+ 42. Kd3 Rd7+ 43. Ke4 Re7+ 44. Kd3 Rd7+ 45. Kc3 Rd5 46. Bxc5 bxc5 {KR-KR} 47. Re4 Kf6 48. Kc4 Re5 49. Re3 Ke6 $1 50. a5 Kd6 51. a6 {White threatens Rxe5 and mate.} Rd5 52. Re4 Rd1 53. f4 {An even fight not without its subleties.   Weighted Error Value: White=0.03 (flawless) /Black=0.02 (flawless) .  Inaccurate:     	White=2     	Black=1      OK:         	White=22    	Black=20     Best:        	White=1     	---        Strong:       	---       	Black=1      Brilliant:      	---       	Black=1} *